fUST/lending_fUST_20260105
["ID","MTS","AMOUNT","RATE_DAILY","PERIOD"]
[400457130,1767581439146,-500.0,0.00013273,2]
[400457131,1767581439155,-502.78216863,0.00013273,2]
[400457132,1767581439166,-500.0,0.00013273,2]
[400457133,1767581439176,-500.0,0.00013273,2]
[400457134,1767581439187,-500.0,0.00013273,2]
[400457135,1767581439197,-500.0,0.00013273,2]
[400457136,1767581439206,-500.0,0.00013273,2]
[400457137,1767581439215,-500.76042299,0.00013273,2]
[400457138,1767581439225,-500.0,0.00013277,2]
[400457139,1767581439235,-500.0,0.00013551,2]
[400457140,1767581439244,-300.0,0.00013573,2]
[400457141,1767581439254,-188.35,0.00013573,2]
[400457142,1767581439263,-188.35,0.00013573,2]
[400457143,1767581439273,-188.35,0.00013573,2]
[400457144,1767581439282,-2128.64226472,0.00013589,2]
[400457145,1767581439293,-300.0,0.00013673,2]
[400457146,1767581439303,-1309.44,0.00013698,2]
[400457147,1767581439312,-1309.44,0.00013698,2]
[400457148,1767581439322,-1309.44,0.00013698,2]
[400457149,1767581439331,-1309.44,0.00013698,2]
[400457150,1767581439341,-1309.44,0.00013698,2]
[400457151,1767581439350,-1309.44,0.00013698,2]
[400457152,1767581439360,-1309.44,0.00013698,2]
[400457153,1767581439369,-1309.44,0.00013698,2]
[400457154,1767581439379,-1309.44,0.00013698,2]
[400457155,1767581439389,-1309.44,0.00013698,2]
[400457156,1767581439399,-1309.44,0.00013698,2]
[400457157,1767581439410,-1309.44,0.00013698,2]
[400457158,1767581439419,-1309.44,0.00013698,2]
[400457159,1767581439434,-1309.44,0.00013698,2]
[400457160,1767581439444,-1309.44,0.00013698,2]
[400457161,1767581439455,-1309.44,0.00013698,2]
[400457162,1767581439466,-1309.44,0.00013698,2]
[400457163,1767581439476,-1309.44,0.00013698,2]
[400457164,1767581439486,-1309.44,0.00013698,2]
[400457165,1767581439496,-1309.44,0.00013698,2]
[400457166,1767581439505,-1309.44,0.00013698,2]
[400457167,1767581439515,-1309.44,0.00013698,2]
[400457168,1767581439524,-1309.44,0.00013698,2]
[400457169,1767581439533,-1309.65326198,0.00013698,2]
[400457170,1767581439542,-734.128779,0.00013699,2]
[400457171,1767581439552,-12212.7400031,0.00013699,2]
[400457172,1767581439561,-502.68760133,0.00013699,2]
[400457173,1767581439571,-500.0,0.00013699,2]
[400457174,1767581439580,-500.0,0.00013699,2]
[400457175,1767581439590,-500.0,0.00013699,2]
[400457176,1767581439599,-500.0,0.00013699,2]
[400457177,1767581439609,-500.0,0.00013699,2]
[400457178,1767581439618,-500.0,0.00013699,2]
[400457179,1767581439628,-500.0,0.00013699,2]
[400457180,1767581439637,-250.76291764,0.00013699,2]
[400457181,1767581439646,-500.0,0.00013699,2]
[400457182,1767581439656,-500.0,0.00013699,2]
[400457183,1767581439666,-500.0,0.00013699,2]
[400457184,1767581439675,-500.0,0.00013699,2]
[400457185,1767581439684,-500.0,0.00013699,2]
[400457186,1767581439694,-500.0,0.00013699,2]
[400457187,1767581439704,-500.0,0.00013699,2]
[400457188,1767581439713,-500.0,0.00013699,2]
[400457189,1767581439723,-540.69228911,0.00013699,2]
[400457190,1767581439733,-500.0,0.00013699,2]
[400457191,1767581439742,-500.0,0.00013699,2]
[400457192,1767581439752,-500.0,0.00013699,2]
[400457193,1767581439762,-502.19874251,0.00013699,2]
[400457194,1767581439774,-500.0,0.00013699,2]
[400457195,1767581439783,-500.0,0.00013699,2]
[400457196,1767581439793,-500.0,0.00013699,2]
[400457197,1767581439807,-500.0,0.00013699,2]
[400457198,1767581439816,-500.0,0.00013699,2]
[400457199,1767581439826,-500.0,0.00013699,2]
[400457200,1767581439835,-500.0,0.00013699,2]
[400457201,1767581439844,-500.0,0.00013699,2]
[400457202,1767581439854,-500.0,0.00013699,2]
[400457203,1767581439863,-500.0,0.00013699,2]
[400457204,1767581439874,-500.0,0.00013699,2]
[400457205,1767581439883,-500.0,0.00013699,2]
[400457206,1767581439893,-554.65731728,0.00013699,2]
[400457207,1767581439903,-500.0,0.00013699,2]
[400457208,1767581439912,-500.0,0.00013699,2]
[400457209,1767581439922,-500.0,0.00013699,2]
[400457210,1767581439931,-500.0,0.00013699,2]
[400457211,1767581439941,-500.0,0.00013699,2]
[400457212,1767581439951,-500.0,0.00013699,2]
[400457213,1767581439960,-213.60726152,0.00013748,2]
[400457215,1767581439969,-1000.0,0.00013821,2]
[400457216,1767581439980,-1000.0,0.00013821,2]
[400457217,1767581439990,-1000.0,0.00013821,2]
[400457218,1767581439999,-1000.0,0.00013821,2]
[400457219,1767581440010,-1000.0,0.00013821,2]
[400457220,1767581440020,-1000.0,0.00013821,2]
[400457221,1767581440030,-1000.0,0.00013821,2]
[400457222,1767581440039,-1000.0,0.00013821,2]
[400457223,1767581440048,-1000.0,0.00013821,2]
[400457224,1767581440058,-1000.0,0.00013821,2]
[400457225,1767581440067,-1000.0,0.00013821,2]
[400457226,1767581440077,-500.0,0.00013825,2]
[400457227,1767581440087,-151.0,0.000139,2]
[400457228,1767581440096,-1488.5383835,0.0001398,2]
[400457229,1767581440106,-500.0,0.00014099,2]
[400457230,1767581440116,-2128.64226472,0.00014128,2]
[400457231,1767581440126,-1410.08344339,0.00014175,2]
[400457232,1767581440135,-2670.16688678,0.00014175,2]
[400457233,1767581440145,-600.0,0.00014221,2]
[400457234,1767581440154,-503.80904989,0.00014247,2]
[400457235,1767581440163,-502.52130965,0.00014247,2]
[400457236,1767581440173,-1000.0,0.00014247,2]
[400457237,1767581440183,-590.48711673,0.00014247,2]
[400457238,1767581440192,-304.0100347,0.00014247,2]
[400457239,1767581440201,-515.19045944,0.00014247,2]
[400457240,1767581440210,-1000.0,0.00014247,2]
[400457241,1767581440219,-503.16153113,0.00014247,2]
[400457242,1767581440228,-182.20633028,0.00014247,2]
[400457243,1767581440237,-1000.0,0.00014247,2]
[400457244,1767581440246,-1000.0,0.00014247,2]
[400457245,1767581440255,-1000.0,0.00014247,2]
[400457246,1767581440264,-708.99443915,0.00014247,2]
[400457248,1767581440273,-1000.0,0.00014247,2]
[400457249,1767581440283,-1000.0,0.00014247,2]
[400457250,1767581440292,-1000.0,0.00014247,2]
[400457251,1767581440301,-1000.0,0.00014247,2]
[400457252,1767581440310,-1000.0,0.00014247,2]
[400457253,1767581440319,-1000.0,0.00014247,2]
[400457254,1767581440328,-1000.0,0.00014247,2]
[400457255,1767581440337,-1000.0,0.00014247,2]
[400457256,1767581440346,-223.92899078,0.00014247,2]
[400457257,1767581440355,-1000.0,0.00014247,2]
[400457258,1767581440364,-2154.949,0.00014309,2]
[400457259,1767581440373,-1500.0,0.00014368,2]
[400457260,1767581440382,-1500.0,0.00014368,2]
[400457261,1767581440392,-1500.0,0.00014368,2]
[400457262,1767581440401,-1500.0,0.00014368,2]
[400457263,1767581440411,-1500.0,0.00014368,2]
[400457264,1767581440420,-1500.0,0.00014368,2]
[400457265,1767581440429,-1500.0,0.00014368,2]
[400457267,1767581440444,-1011.44646466,0.00014368,2]
[400457269,1767581440457,-1500.0,0.00014368,2]
[400457271,1767581440467,-1500.0,0.00014368,2]
[400457273,1767581440674,-1500.0,0.00014368,2]
[400457274,1767581440690,-500.0,0.00014373,2]
[400457275,1767581440699,-332.1378079,0.00014403,2]
[400457276,1767581440709,-10000.0,0.0001451,2]
[400457277,1767581440718,-587.0,0.0001452,2]
[400457278,1767581440728,-318.04456631,0.00014596,2]
[400457279,1767581440737,-500.0,0.00014647,2]
[400457280,1767581440746,-2128.64226472,0.00014668,2]
[400457281,1767581440755,-416.0,0.00014686,2]
[400457282,1767581440765,-178.0,0.00014686,2]
[400457283,1767581440775,-151.0,0.00014736,2]
[400457284,1767581440784,-151.0,0.00014736,2]
[400457285,1767581440794,-151.0,0.00014736,2]
[400457286,1767581440806,-266.691078,0.00014736,2]
[400457287,1767581440815,-151.0,0.00014736,2]
[400457288,1767581440824,-151.0,0.00014736,2]
[400457289,1767581440834,-151.0,0.00014736,2]
[400457290,1767581440843,-151.0,0.00014736,2]
[400457291,1767581440852,-165.039105,0.00014736,2]
[400457292,1767581440861,-900.0,0.00014768,2]
[400457293,1767581440872,-1500.0,0.00014795,2]
[400457294,1767581440881,-1500.0,0.00014795,2]
[400457295,1767581440890,-645.9470895,0.00014795,2]
[400457296,1767581440899,-1500.0,0.00014795,2]
[400457297,1767581440909,-1500.0,0.00014795,2]
[400457298,1767581440918,-1500.0,0.00014795,2]
[400457299,1767581440927,-1501.60946958,0.00014795,2]
[400457300,1767581440936,-1500.0,0.00014795,2]
[400457302,1767581440945,-1500.0,0.00014795,2]
[400457304,1767581440954,-1500.0,0.00014795,2]
[400457305,1767581440964,-954.79636013,0.00014795,2]
[400457306,1767581440973,-1301.70048773,0.00014795,2]
[400457307,1767581440983,-1500.0,0.00014795,2]
[400457308,1767581440992,-1007.25688502,0.00014795,2]
[400457309,1767581441000,-151.0,0.000148,2]
[400457310,1767581441010,-3930.25033017,0.00014842,2]
[400457311,1767581441019,-156.245165,0.00014916,2]
[400457312,1767581441029,-444.71129824,0.00014916,2]
[400457313,1767581441038,-2000.0,0.00014916,2]
[400457314,1767581441048,-2000.0,0.00014916,2]
[400457315,1767581441057,-2000.0,0.00014916,2]
[400457316,1767581441066,-2000.0,0.00014916,2]
[400457317,1767581441075,-2000.0,0.00014916,2]
[400457318,1767581441084,-2000.0,0.00014916,2]
[400457319,1767581441094,-2000.0,0.00014916,2]
[400457320,1767581441103,-2000.0,0.00014916,2]
[400457321,1767581441114,-2000.0,0.00014916,2]
[400457322,1767581441124,-500.0,0.00014921,2]
[400457323,1767581441133,-100000.0,0.0001499,2]
[400457324,1767581441142,-151.0,0.0001499,2]
[400457325,1767581441152,-381.15852645,0.00015,2]
[400457326,1767581441161,-1000.0,0.00015,2]
[400457327,1767581441170,-23080.2691387,0.00015064,2]
[400457328,1767581441179,-800.0,0.00015068,2]
[400457329,1767581441188,-500.0,0.00015195,2]
[400457330,1767581441197,-1200.0,0.00015316,2]
[400457331,1767581441206,-2000.0,0.00015342,2]
[400457332,1767581441215,-2000.0,0.00015342,2]
[400457333,1767581441225,-2000.0,0.00015342,2]
[400457334,1767581441234,-2000.0,0.00015342,2]
[400457335,1767581441243,-182.69910266,0.00015342,2]
[400457336,1767581441253,-2000.0,0.00015342,2]
[400457337,1767581441262,-2000.0,0.00015342,2]
[400457338,1767581441271,-2000.0,0.00015342,2]
[400457339,1767581441280,-2000.0,0.00015342,2]
[400457340,1767581441289,-500.0,0.00015364,2]
[400457341,1767581441298,-2500.0,0.00015464,2]
[400457342,1767581441307,-2500.0,0.00015464,2]
[400457343,1767581441316,-2500.0,0.00015464,2]
[400457344,1767581441325,-2500.0,0.00015464,2]
[400457345,1767581441334,-2500.0,0.00015464,2]
[400457346,1767581441348,-2500.0,0.00015464,2]
[400457347,1767581441357,-2500.0,0.00015464,2]
[400457348,1767581441366,-2500.0,0.00015464,2]
[400457349,1767581441375,-2500.0,0.00015464,2]
[400457350,1767581441384,-500.0,0.00015469,2]
[400457351,1767581441393,-3552.36031273,0.00015627,2]
[400457352,1767581441403,-151.0,0.000157,2]
[400457353,1767581441412,-500.0,0.00015743,2]
[400457354,1767581441422,-241.87881084,0.00015748,2]
[400457355,1767581441431,-1503.39831266,0.00015864,2]
[400457356,1767581441441,-888.7191317,0.00015881,2]
[400457357,1767581441450,-151.0,0.0001589,2]
[400457358,1767581441459,-151.0,0.0001589,2]
[400457359,1767581441468,-151.0,0.0001589,2]
[400457360,1767581441477,-151.0,0.0001589,2]
[400457361,1767581441487,-151.0,0.0001589,2]
[400457362,1767581441495,-151.0,0.0001589,2]
[400457363,1767581441506,-151.0,0.0001589,2]
[400457364,1767581441515,-1652.05252624,0.0001589,2]
[400457365,1767581441527,-2502.70184396,0.0001589,2]
[400457366,1767581441536,-2502.73058689,0.0001589,2]
[400457367,1767581441545,-2502.3226715,0.0001589,2]
[400457368,1767581441555,-2511.36258874,0.0001589,2]
[400457369,1767581441566,-2506.17926872,0.0001589,2]
[400457370,1767581441577,-2506.91111939,0.0001589,2]
[400457371,1767581441586,-2506.65794368,0.0001589,2]
[400457372,1767581441596,-823.0,0.00015939,2]
[400457373,1767581441606,-3000.0,0.00016012,2]
[400457374,1767581441616,-3000.0,0.00016012,2]
[400457375,1767581441625,-3000.0,0.00016012,2]
[400457376,1767581441635,-3000.0,0.00016012,2]
[400457377,1767581441644,-3010.09110971,0.00016012,2]
[400457378,1767581441653,-1613.60271407,0.00016012,2]
[400457379,1767581441663,-3027.19123684,0.00016012,2]
[400457380,1767581441673,-3000.0,0.00016012,2]
[400457381,1767581441682,-3000.0,0.00016012,2]
[400457382,1767581441691,-500.0,0.00016017,2]
[400457383,1767581441700,-500.0,0.00016132,2]
[400457384,1767581441711,-1601.12013441,0.00016164,2]
[400457385,1767581441720,-1041.66666667,0.0001621,2]
[400457386,1767581441730,-5190.33377356,0.0001622,4]
[400457387,1767581441740,-500.0,0.00016291,2]
[400457388,1767581441749,-151.0,0.00016438,2]
[400457389,1767581441758,-151.0,0.00016438,2]
[400457390,1767581441767,-151.0,0.00016438,2]
[400457391,1767581441776,-151.0,0.00016438,2]
[400457392,1767581441786,-151.0,0.00016438,2]
[400457393,1767581441800,-151.0,0.00016438,2]
[400457394,1767581441809,-151.0,0.00016438,2]
[400457395,1767581441819,-151.0,0.00016438,2]
[400457396,1767581441828,-151.0,0.00016438,2]
[400457397,1767581441839,-151.0,0.00016438,2]
[400457398,1767581441849,-151.0,0.000165,2]
[400457399,1767581441859,-216.0,0.00016712,3]
[400457400,1767581441868,-1000.0,0.000168,4]
[400457401,1767581441878,-500.0,0.00016939,2]
[400457402,1767581441888,-17999.0,0.00017,3]
[400457403,1767581441897,-151.0,0.00017,2]
[400457404,1767581441907,-23080.2691387,0.00017125,2]
[400457405,1767581441916,-151.0,0.000174,2]
[400457406,1767581441927,-6450.41721696,0.00017598,7]
[400457407,1767581441936,-594.76101665,0.00017686,2]
[400457408,1767581441945,-416.0,0.00017686,2]
[400457409,1767581441954,-178.0,0.00017686,2]
[400457410,1767581441963,-270.15036016,0.00017748,2]
[400457411,1767581441973,-500.0,0.00017786,2]
[400457412,1767581441983,-15209.99759758,0.00018,5]
[400457413,1767581441992,-428.0,0.0001809,2]
[400457414,1767581442001,-428.0,0.00018166,2]
[400457415,1767581442010,-428.0,0.00018167,2]
[400457416,1767581442020,-428.0,0.00018246,2]
[400457417,1767581442030,-428.0,0.00018259,2]
[400457418,1767581442040,-151.0,0.000183,2]
[400457419,1767581442049,-180.26091414,0.00018306,21]
[400457420,1767581442059,-428.0,0.00018309,2]
[400457421,1767581442068,-428.0,0.00018519,2]
[400457422,1767581442078,-181.08010149,0.00018549,2]
[400457423,1767581442087,-428.0,0.00018585,2]
[400457424,1767581442097,-428.0,0.00018629,2]
[400457425,1767581442107,-428.0,0.00018714,2]
[400457426,1767581442116,-151.0,0.000188,2]
[400457427,1767581442126,-598919.17375389,0.0001881,2]
[400457428,1767581442235,-18082.59628358,0.0001881,2]
[400457488,1767581444603,-600000.0,0.0001881,2]
[400457492,1767581446655,-333.33333333,0.0001881,2]
[400457786,1767581677412,152.0,0.00030136,120]
[400458129,1767581991533,3011.75210696,0.0003013,120]
[400458678,1767582294743,164.71694925,0.000301,120]
[400459441,1767582631613,-164.09361497,0.0001205,2]
[400459442,1767582631623,-500.0,0.0001205,2]
[400459443,1767582631633,-464.32589036,0.0001205,2]
[400459444,1767582631642,-178.62257221,0.0001205,2]
[400459445,1767582631652,-500.0,0.0001205,2]
[400459446,1767582631661,-600.0,0.00012291,2]
[400459447,1767582631670,-160.0,0.0001308,2]
[400459449,1767582631680,-1041.66666667,0.0001308,2]
[400459450,1767582631689,-500.0,0.00013273,2]
[400459451,1767582631699,-720.0,0.0001352,2]
[400459452,1767582631709,-694.311435,0.00013699,2]
[400459453,1767582631718,-1000.0,0.00013699,2]
[400459455,1767582631727,-500.0,0.00013699,2]
[400459456,1767582631737,-500.0,0.00013699,2]
[400459457,1767582631746,-500.0,0.00013699,2]
[400459458,1767582631755,-500.0,0.00013699,2]
[400459459,1767582631764,-500.0,0.00013699,2]
[400459460,1767582631774,-283.85081303,0.00013699,2]
[400459461,1767582631784,-500.0,0.00013699,2]
[400459462,1767582631793,-1000.0,0.00013821,2]
[400459463,1767582631803,-177.0,0.0001405,2]
[400459464,1767582631815,-1383.37494502,0.00014175,2]
[400459465,1767582631824,-216.57496577,0.00014207,2]
[400459502,1767582637785,-2824.04752898,0.00014207,2]
[400460001,1767582830916,10000.0,9.37e-05,2]
[400460043,1767582845991,0.01,9.37e-05,2]
[400460044,1767582846012,1251.35,9.37e-05,2]
[400460766,1767583263194,500.0,0.00030136,120]
[400460767,1767583263345,500.0,0.00030136,120]
[400460768,1767583263586,500.0,0.00030136,120]
[400460769,1767583263831,500.0,0.00030136,120]
[400460770,1767583264084,571.97700006,0.00030136,120]
[400462567,1767583927142,500.0,0.00030136,120]
[400462568,1767583927390,500.0,0.00030136,120]
[400462569,1767583927695,500.0,0.00030136,120]
[400462570,1767583927944,552.60051581,0.00030136,120]
[400462683,1767583976096,167.49,7.967e-05,2]
[400462684,1767583976497,334.97,8.347e-05,2]
[400462685,1767583976879,502.46,8.726e-05,2]
[400462686,1767583977342,669.95,9.106e-05,2]
[400462741,1767584053871,293.41,8.049e-05,2]
[400462742,1767584054280,586.81,8.432e-05,2]
[400462743,1767584054708,880.22,8.815e-05,2]
[400462744,1767584055163,1173.63,9.199e-05,2]
[400462782,1767584132226,354.22,9.003e-05,2]
[400462784,1767584136445,-482.94929806,9.432e-05,2]
[400462859,1767584212999,343.57,8.865e-05,2]
[400462863,1767584213479,687.14,9.287e-05,2]
[400462994,1767584280760,275.56,9.99e-06,2]
[400463035,1767584294036,330.45,8.953e-05,2]
[400463048,1767584301686,-232.04025047,9.379e-05,2]
[400463049,1767584303518,2148.78,9.37e-05,2]
[400463050,1767584303542,1465.96720413,9.37e-05,2]
[400463051,1767584304426,-180.71406105,9.379e-05,2]
[400463223,1767584376358,320.99,8.139e-05,2]
[400463224,1767584376766,641.98,8.526e-05,2]
[400463225,1767584377380,962.97,8.914e-05,2]
[400463226,1767584377794,1283.96,9.301e-05,2]
[400463360,1767584455833,280.14,9.249e-05,2]
[400463460,1767584559656,276.57,8.402e-05,2]
[400463463,1767584560168,553.14,8.802e-05,2]
[400463464,1767584560601,829.72,9.202e-05,2]
[400463500,1767584639448,255.45,8.298e-05,2]
[400463501,1767584639834,510.9,8.693e-05,2]
[400463502,1767584640224,766.36,9.088e-05,2]
[400463503,1767584645064,590.66428963,0.00030136,120]
[400463504,1767584720543,235.94,8.322e-05,2]
[400463505,1767584720975,471.89,8.718e-05,2]
[400463506,1767584721378,707.83,9.115e-05,2]
[400463524,1767584804511,217.93,6.863e-05,2]
[400463525,1767584804898,218.27279587,7.19e-05,2]
[400463526,1767584804921,217.57720413,7.19e-05,2]
[400463527,1767584805358,653.78,7.517e-05,2]
[400463528,1767584805763,871.71,7.844e-05,2]
[400463529,1767584806187,1089.64,8.171e-05,2]
[400463530,1767584806665,1307.56,8.497e-05,2]
[400463531,1767584807055,1525.49,8.824e-05,2]
[400463532,1767584807628,1743.42,9.151e-05,2]
[400463534,1767584882979,236.15,9.153e-05,2]
[400463535,1767584902344,600.0,9.37e-05,2]
[400463536,1767584962226,230.14,7.911e-05,2]
[400463537,1767584962655,345.21,8.271e-05,2]
[400463538,1767584963095,460.29,8.63e-05,2]
[400463539,1767584966671,575.36,8.99e-05,2]
[400463540,1767584967129,143.68279587,9.349e-05,2]
[400463541,1767584967154,546.74720413,9.349e-05,2]
[400463571,1767585031919,-178.74984169,9.607e-05,2]
[400463573,1767585031928,-878.17385051,9.709e-05,2]
[400463575,1767585031942,-932.38779025,9.709e-05,2]
[400463624,1767585038124,-344.38736624,9.709e-05,2]
[400463626,1767585038134,-2619.9680464,0.0001002,2]
[400463628,1767585038144,-300.0,0.00010113,2]
[400463630,1767585038154,-300.0,0.00010113,2]
[400463632,1767585038163,-2154.949008,0.00010114,2]
[400463635,1767585038173,-500.0,0.00010301,2]
[400463637,1767585038183,-500.0,0.00010301,2]
[400463639,1767585038193,-500.0,0.00010301,2]
[400463641,1767585038203,-262.96387177,0.00010301,2]
[400463643,1767585038212,-500.0,0.00010301,2]
[400463645,1767585038222,-500.0,0.00010301,2]
[400463647,1767585038231,-500.0,0.00010301,2]
[400463648,1767585038241,-556.20765449,0.00010301,2]
[400463649,1767585038253,-417.45540339,0.00010301,2]
[400463650,1767585038263,-500.0,0.00010301,2]
[400463651,1767585038273,-500.0,0.00010301,2]
[400463652,1767585038282,-500.0,0.00010301,2]
[400463653,1767585038292,-500.0,0.00010301,2]
[400463654,1767585038302,-500.0,0.00010301,2]
[400463655,1767585038312,-500.0,0.00010301,2]
[400463656,1767585038321,-500.0,0.00010301,2]
[400463657,1767585038331,-500.0,0.00010301,2]
[400463658,1767585038340,-500.0,0.00010301,2]
[400463659,1767585038349,-500.0,0.00010301,2]
[400463660,1767585038359,-609.58543684,0.00010301,2]
[400463661,1767585038369,-394.77152519,0.00010301,2]
[400463662,1767585038379,-15641.10519206,0.00010302,2]
[400463663,1767585038389,-1035.64,0.00010428,2]
[400463664,1767585038399,-1150.72,0.00010788,2]
[400463665,1767585038409,-500.0,0.00010959,2]
[400463666,1767585038420,-500.0,0.00010959,2]
[400463667,1767585038430,-360.18977017,0.00010959,2]
[400463668,1767585038440,-500.0,0.00010959,2]
[400463669,1767585038450,-500.0,0.00010959,2]
[400463670,1767585038460,-500.0,0.00010959,2]
[400463671,1767585038470,-500.0,0.00010959,2]
[400463672,1767585038479,-420.0,0.00011123,2]
[400463673,1767585038489,-11261.17583221,0.00011392,2]
[400463674,1767585038498,-32116.80531059,0.00011395,2]
[400463675,1767585038510,-7256.77361737,0.00011395,2]
[400463676,1767585038521,-18668.246885,0.00011395,2]
[400463677,1767585038532,-941958.17418704,0.00011395,2]
[400463678,1767585038541,-210.9248132,0.00011607,2]
[400463679,1767585038550,-587.0,0.00012234,2]
[400463680,1767585038560,-515.5930176,0.00012329,2]
[400463681,1767585038570,-252.73777953,0.00012705,2]
[400463682,1767585038580,-3821.10235916,0.000129,2]
[400463683,1767585038590,-1041.66666667,0.00013074,2]
[400463684,1767585038599,-500.0,0.00013273,2]
[400463685,1767585038608,-500.0,0.00013273,2]
[400463686,1767585038619,-172.22882441,0.00013273,2]
[400463687,1767585038628,-500.0,0.00013273,2]
[400463688,1767585038638,-501.74485586,0.00013273,2]
[400463689,1767585038647,-502.75329392,0.00013273,2]
[400463690,1767585038657,-500.0,0.00013273,2]
[400463691,1767585038667,-215.98609616,0.00013273,2]
[400463692,1767585038676,-500.0,0.00013273,2]
[400463693,1767585038686,-500.0,0.00013273,2]
[400463694,1767585038695,-500.0,0.00013273,2]
[400463695,1767585038707,-500.0,0.00013273,2]
[400463696,1767585038717,-500.0,0.00013273,2]
[400463697,1767585038727,-500.0,0.00013273,2]
[400463698,1767585038746,-500.0,0.00013273,2]
[400463699,1767585038767,-588.2682097,0.00013273,2]
[400463700,1767585038786,-500.0,0.00013273,2]
[400463701,1767585038796,-500.0,0.00013273,2]
[400463702,1767585038808,-501.13693143,0.00013273,2]
[400463703,1767585038818,-181.41080608,0.00013273,2]
[400463704,1767585038829,-283.8218406,0.00013273,2]
[400463705,1767585038840,-276.67951188,0.00013273,2]
[400463706,1767585038850,-187.53143178,0.00013273,2]
[400463707,1767585038862,-375.41,0.00013447,2]
[400463708,1767585038878,-267.54,0.00013447,2]
[400463709,1767585038887,-375.41043889,0.00013547,2]
[400463710,1767585038897,-243.0997847,0.00013607,2]
[400463711,1767585038907,-300.0,0.00013673,2]
[400463712,1767585038918,-500.0,0.00013698,2]
[400463713,1767585038928,-500.0,0.00013698,2]
[400463714,1767585038938,-500.0,0.00013698,2]
[400463715,1767585038950,-500.0,0.00013698,2]
[400463716,1767585038960,-500.0,0.00013698,2]
[400463717,1767585038970,-500.0,0.00013698,2]
[400463718,1767585038990,-500.0,0.00013698,2]
[400463719,1767585039002,-551.97535149,0.00013698,2]
[400463720,1767585039012,-1000.0,0.00013698,2]
[400463721,1767585039023,-1000.0,0.00013698,2]
[400463722,1767585039034,-1000.0,0.00013698,2]
[400463723,1767585039045,-1000.0,0.00013698,2]
[400463724,1767585039057,-764.77884773,0.00013698,2]
[400463725,1767585039067,-500.0,0.00013698,2]
[400463726,1767585039078,-500.0,0.00013698,2]
[400463727,1767585039089,-500.0,0.00013698,2]
[400463728,1767585039100,-500.0,0.00013698,2]
[400463729,1767585039110,-500.0,0.00013698,2]
[400463730,1767585039121,-367.06439,0.00013699,2]
[400463731,1767585039142,-2784.4482943,0.00013699,2]
[400463732,1767585039164,-500.0,0.00013699,2]
[400463733,1767585039175,-500.0,0.00013699,2]
[400463734,1767585039186,-501.88622503,0.00013699,2]
[400463735,1767585039196,-500.0,0.00013699,2]
[400463736,1767585039207,-502.00969173,0.00013699,2]
[400463737,1767585039218,-166.26505309,0.00013699,2]
[400463738,1767585039228,-523.98513219,0.00013699,2]
[400463739,1767585039240,-503.75899236,0.00013699,2]
[400463740,1767585039251,-224.17516804,0.00013699,2]
[400463741,1767585039261,-500.0,0.00013699,2]
[400463742,1767585039272,-519.09852395,0.00013699,2]
[400463743,1767585039283,-502.4018374,0.00013699,2]
[400463744,1767585039293,-500.57280891,0.00013699,2]
[400463745,1767585039305,-500.96756994,0.00013699,2]
[400463746,1767585039316,-501.99402388,0.00013699,2]
[400463747,1767585039327,-500.0,0.00013699,2]
[400463748,1767585039337,-500.0,0.00013699,2]
[400463749,1767585039347,-500.0,0.00013699,2]
[400463750,1767585039356,-501.19324627,0.00013699,2]